bitfinex/quotes_ETHUSD_20251031
["timestamp","ask_amount","ask_price","bid_price","bid_amount"]
[1761927290966,0.005,3857.7,3857.1,3.8719768]
[1761927291308,0.491,3858.1,3858.0,2.59201658]
[1761927291466,0.491,3858.1,3858.0,6.46081658]
[1761927291665,0.9625,3858.1,3858.0,6.46081658]
[1761927292802,0.1288,3858.3,3858.2,2.59188222]
[1761927293792,0.6003,3858.3,3858.2,2.59188222]
[1761927293974,1.0913,3858.3,3858.2,2.59188222]
[1761927294474,0.005,3858.7,3858.6,2.59161353]
[1761927294666,0.1338,3858.7,3858.6,2.61752966]
[1761927294862,0.1338,3858.7,3858.6,2.59161353]
[1761927295790,0.6053,3858.7,3858.6,2.59161353]
[1761927297196,1.0963,3858.7,3858.6,2.59161353]
[1761927297584,1.0963,3858.7,3858.5,2.5916807]
[1761927297798,1.0963,3858.7,3858.3,3.8688]
[1761927297799,0.491,3858.6,3858.4,2.59173882]
[1761927298197,0.4715,3858.5,3858.4,2.59173882]
[1761927298377,0.4715,3858.5,3858.3,6.46058815]
[1761927298577,0.9625,3858.4,3858.3,3.8688]
[1761927298777,0.9625,3858.4,3857.5,2.72195255]
[1761927298778,0.1288,3858.3,3857.5,2.72195255]
[1761927298997,0.1288,3858.3,3857.6,0.65907525]
[1761927299290,0.1288,3858.3,3858.1,2.59188619]
[1761927299491,0.1288,3858.3,3858.2,2.59188222]
[1761927299675,0.491,3858.2,3857.8,2.59215096]
[1761927299875,0.4715,3858.1,3858.0,2.59196308]
[1761927300083,0.491,3858.2,3858.0,2.59196308]
[1761927300284,0.491,3858.2,3857.6,0.65907525]
[1761927300285,0.4715,3858.1,3857.6,0.65907525]
[1761927300492,0.1296,3857.9,3857.7,2.59220818]
[1761927300670,0.1296,3857.9,3857.8,2.59215096]
[1761927300869,0.1296,3857.9,3857.7,0.32512834]
[1761927300870,0.3257,3857.9,3857.7,0.32512834]
[1761927301106,0.4715,3857.8,3857.7,0.32512834]
[1761927301270,0.4715,3857.8,3857.6,2.5922188]
[1761927301471,0.4715,3857.8,3857.4,2.59241976]
[1761927301472,0.9625,3857.7,3857.4,2.59241976]
[1761927301710,0.4715,3857.5,3857.4,2.59241976]
[1761927302887,0.491,3857.7,3857.6,2.59228535]
[1761927303283,0.9625,3857.7,3857.1,2.59258948]
[1761927303593,0.6011,3857.5,3857.1,2.59257219]
[1761927303798,0.9617,3857.2,3856.6,0.96661712]
[1761927304121,0.5722,3856.7,3855.1,3.492149]
[1761927304275,0.4715,3856.2,3856.1,2.59829374]
[1761927304473,0.4715,3856.2,3856.1,0.52417172]
[1761927304699,0.9625,3856.2,3856.1,0.52417172]
[1761927304899,0.9625,3856.2,3856.1,0.005]
[1761927308297,22.97470149,3856.2,3856.1,0.005]
[1761927309408,13.68502949,3856.2,3856.1,0.005]
[1761927310372,21.49164249,3856.2,3856.1,0.005]
[1761927310580,16.26133249,3856.2,3856.1,0.005]
[1761927310780,18.14677584,3856.2,3856.1,0.005]
[1761927311374,7.24635384,3856.2,3856.1,0.005]
[1761927311589,33.45951684,3856.2,3856.1,0.005]
[1761927311785,5.36091049,3856.2,3856.1,0.005]
[1761927312014,8.32383549,3856.2,3856.1,0.005]
[1761927312206,7.91833149,3856.2,3856.1,0.005]
[1761927312407,12.75624949,3856.2,3856.1,0.005]
[1761927312716,4.111208,3856.2,3856.1,0.005]
[1761927312883,6.70443449,3856.2,3856.1,0.005]
[1761927313083,4.111208,3856.2,3856.1,0.005]
[1761927313412,6.70443449,3856.2,3856.1,0.005]
[1761927313713,4.111208,3856.2,3856.1,0.005]
[1761927315524,6.70443449,3856.2,3856.1,0.005]
[1761927316086,5.103937,3856.2,3856.1,0.005]
[1761927316279,0.4715,3856.2,3856.1,0.005]
[1761927316484,1.39968,3856.5,3856.1,0.005]
[1761927316694,3.0537725,3856.6,3856.2,3.8688]
[1761927316695,0.4608,3856.6,3856.2,3.8688]
[1761927316918,0.1296,3856.4,3856.3,0.41331159]
[1761927317213,0.1296,3856.4,3856.3,0.38738]
[1761927317417,0.1296,3856.4,3856.2,3.8688]
[1761927317418,2.59315924,3856.3,3856.2,3.8688]
[1761927317620,3.54815924,3856.3,3856.2,3.8688]
[1761927317916,2.72282649,3856.2,3856.1,0.005]
[1761927318078,10.48452,3856.2,3856.1,0.005]
[1761927318432,7.09682649,3856.2,3856.1,0.005]
[1761927320416,33.21912356,3856.2,3856.1,0.005]
[1761927320597,13.49216156,3856.2,3856.1,0.005]
[1761927320940,13.89766556,3856.2,3856.1,0.005]
[1761927321518,36.46470756,3856.2,3856.1,0.005]
[1761927322633,19.21571356,3856.2,3856.1,0.005]
[1761927323439,19.21571356,3856.2,3856.1,0.007]
[1761927323652,36.46470756,3856.2,3856.1,0.007]
[1761927324449,30.81560356,3856.2,3856.1,0.007]
[1761927324693,1.56,3856.8,3856.1,0.007]
[1761927324694,0.1887,3856.8,3856.1,0.2307]
[1761927324943,0.1887,3856.8,3856.1,0.007]
[1761927324944,2.59303313,3856.5,3856.1,0.007]
[1761927325252,2.59304148,3856.5,3856.1,0.007]
[1761927325455,0.4653,3856.4,3856.1,0.007]
[1761927325843,0.4857,3856.2,3856.1,0.007]
[1761927326312,3.07892649,3856.2,3856.1,0.007]
[1761927326514,3.05845254,3856.4,3856.1,0.007]
[1761927326754,3.07892649,3856.2,3856.1,0.007]
[1761927327125,3.54422649,3856.2,3856.1,0.007]
[1761927327329,35.65730314,3856.2,3856.1,0.007]
[1761927327636,35.08007014,3856.2,3856.1,0.007]
[1761927328021,32.00375014,3856.2,3856.1,0.007]
[1761927328221,30.32599914,3856.2,3856.1,0.007]
[1761927328457,30.25801614,3856.2,3856.1,0.007]
[1761927328826,29.26003214,3856.2,3856.1,0.007]
[1761927329360,29.35717514,3856.2,3856.1,0.007]
[1761927329863,24.38688614,3856.2,3856.1,0.007]
[1761927330012,7.384612,3856.2,3856.1,0.007]
[1761927330213,0.4857,3856.2,3856.1,0.007]
[1761927330642,0.951,3856.2,3856.1,0.007]
[1761927331011,0.4857,3856.2,3856.1,0.007]
[1761927331228,3.07892649,3856.2,3856.1,0.007]
[1761927331556,3.54422649,3856.2,3856.1,0.007]
[1761927331727,4.11142229,3856.2,3856.1,0.007]
[1761927332151,0.405504,3856.5,3856.1,0.007]
[1761927332379,1.39968,3856.4,3856.1,0.007]
[1761927332580,2.59322649,3856.2,3856.1,0.007]
[1761927332748,1.39968,3856.3,3856.1,0.007]
[1761927332952,0.405504,3856.7,3856.1,0.007]
[1761927333368,0.654,3856.8,3856.2,0.1089]
[1761927333369,0.1887,3856.8,3856.2,0.1089]
[1761927333569,3.99264531,3856.6,3856.2,0.1089]
[1761927333768,1.39968,3856.6,3856.1,0.007]
[1761927333998,2.59302476,3856.5,3856.1,0.007]
[1761927334303,0.654,3856.8,3856.1,0.007]
[1761927334304,0.1887,3856.8,3856.1,0.007]
[1761927334606,4.47860649,3856.2,3856.1,0.007]
[1761927334758,21.76134249,3856.2,3856.1,0.007]
[1761927334956,22.22664249,3856.2,3856.1,0.007]
[1761927335353,17.81714049,3856.2,3856.1,0.007]
[1761927335793,23.40548449,3856.2,3856.1,0.007]
[1761927336683,27.37332914,3856.2,3856.1,0.007]
[1761927336894,22.19662814,3856.2,3856.1,0.007]
[1761927337754,31.94538414,3856.2,3856.1,0.007]
[1761927337953,23.95162814,3856.2,3856.1,0.007]
[1761927338889,37.08142914,3856.2,3856.1,0.007]
[1761927339110,30.21989414,3856.2,3856.1,0.007]
[1761927339260,29.19236414,3856.2,3856.1,0.007]
[1761927339805,37.94926814,3856.2,3856.1,0.007]
[1761927340912,33.77660714,3856.2,3856.1,0.007]
[1761927341071,30.91908914,3856.2,3856.1,0.007]
[1761927341918,1.934784,3856.1,3855.7,0.002]
[1761927342250,25.26728751,3855.8,3855.7,0.002]
[1761927342571,25.73258751,3855.8,3855.7,0.002]
[1761927342816,35.45777951,3855.8,3855.7,0.002]
[1761927343019,32.19454151,3855.8,3855.7,0.002]
[1761927343316,34.79439916,3855.8,3855.7,0.002]
[1761927343875,38.05763716,3855.8,3855.7,0.002]
[1761927344070,22.24998916,3855.8,3855.7,0.002]
[1761927344872,30.09913568,3855.8,3855.7,0.002]
[1761927345916,38.46446068,3855.8,3855.7,0.002]
[1761927346486,36.44447768,3855.8,3855.7,0.002]
[1761927346686,34.42867668,3855.8,3855.7,0.002]
[1761927346889,8.46446068,3855.8,3855.7,0.002]
[1761927347100,37.30352688,3855.8,3855.7,0.002]
[1761927347313,37.12177866,3855.8,3855.7,0.002]
[1761927348238,27.28921951,3855.8,3855.7,0.002]
[1761927348809,37.01777951,3855.8,3855.7,0.002]
[1761927350109,32.99920131,3855.5,3855.3,0.002]
[1761927350316,44.31485097,3855.5,3855.3,0.002]
[1761927353208,26.21185897,3855.5,3855.3,0.002]
[1761927353413,14.97347585,3855.5,3855.3,0.002]
[1761927353747,8.42372631,3855.5,3855.3,0.002]
[1761927353947,25.13592731,3855.5,3855.3,0.002]
[1761927354108,6.86140231,3855.5,3855.3,0.002]
[1761927354309,6.45589831,3855.5,3855.4,0.2257]
[1761927354553,3.99257731,3855.5,3855.4,0.2257]
[1761927355077,4.39808131,3855.5,3855.4,0.2257]
[1761927355282,3.99257731,3855.5,3855.4,0.002]
[1761927355851,4.44437731,3855.5,3855.4,0.002]
[1761927356095,5.18885748,3855.5,3855.4,0.002]
[1761927356263,5.68785748,3855.5,3855.4,0.002]
[1761927356461,42.4470196,3855.5,3855.4,0.002]
[1761927357377,35.87262597,3855.5,3855.4,0.002]
[1761927357576,21.97146497,3855.5,3855.4,0.002]
[1761927357768,22.47046497,3855.5,3855.4,0.002]
[1761927358169,22.26861697,3855.5,3855.4,0.002]
[1761927358480,35.05463397,3855.5,3855.4,0.002]
[1761927358781,19.67900197,3855.5,3855.4,0.002]
[1761927358982,7.86468731,3855.5,3855.4,0.2257]
[1761927359346,8.31648731,3855.5,3855.4,0.002]
[1761927359552,16.52233631,3855.5,3855.4,0.002]
[1761927359765,12.29733631,3855.5,3855.4,0.002]
[1761927359965,10.21310231,3855.5,3855.4,0.002]
[1761927360163,10.21310231,3855.5,3855.4,0.2257]
[1761927360164,3.99337731,3855.5,3855.4,0.2257]
[1761927360950,1.39968,3855.5,3855.4,0.2257]
[1761927361367,3.99337731,3855.5,3855.4,0.2257]
[1761927361850,1.39968,3855.5,3855.4,0.2257]
[1761927362046,2.59315961,3856.3,3855.4,3.04314268]
[1761927362285,0.1296,3855.6,3855.5,0.58983509]
[1761927362498,2.5927562,3856.9,3855.5,0.56389812]
[1761927362698,2.59275584,3856.9,3856.8,0.2237]
[1761927362909,3.99243584,3856.9,3856.8,0.2237]
[1761927363599,3.99246677,3856.9,3856.0,0.2237]
[1761927364101,0.001,3857.2,3856.8,0.2237]
[1761927364407,2.59275584,3856.9,3856.8,0.2237]
[1761927364783,2.59291181,3856.7,3856.2,0.2237]
[1761927364983,2.59291181,3856.7,3856.2,0.50540478]
[1761927365180,2.59309369,3856.4,3856.2,0.50540478]
[1761927365395,2.59306376,3856.5,3856.2,0.2237]
[1761927365600,2.59310015,3856.4,3856.3,0.2237]
[1761927366307,6.49772649,3857.1,3856.3,3.0405412]
[1761927366308,1.39968,3857.1,3856.3,3.0405412]
[1761927366604,2.59262304,3857.1,3857.0,0.2237]
[1761927366905,2.59262304,3857.1,3857.0,0.4474]
[1761927366906,2.59262139,3857.1,3857.0,0.4474]
[1761927367111,2.59262139,3857.1,3857.0,0.2237]
[1761927368078,0.001,3857.2,3857.0,0.4474]
[1761927368274,0.001,3857.2,3856.7,0.1147]
[1761927368275,0.4518,3857.1,3856.7,0.1147]
[1761927368517,2.59280017,3856.9,3856.7,0.1147]
[1761927368824,2.59274725,3857.0,3856.7,0.1147]
[1761927369023,0.001,3857.2,3857.1,0.2237]
[1761927369182,2.59282254,3856.9,3856.2,6.46202562]
[1761927369385,2.59262139,3857.1,3856.3,4.62970256]
[1761927369620,0.5,3857.2,3856.3,3.9835]
[1761927369798,14.512949,3857.1,3856.3,3.9835]
[1761927370016,14.305561,3857.1,3856.3,3.9835]
[1761927370191,0.5,3857.2,3856.3,3.9835]
[1761927370399,8.282782,3857.1,3856.3,3.9835]
[1761927370628,2.340677,3857.0,3856.3,3.9835]
[1761927370930,1.09999325,3857.2,3856.3,3.9835]
[1761927371096,2.59282781,3856.8,3856.4,0.2237]
[1761927371297,2.59279669,3856.9,3856.4,0.2237]
[1761927371501,2.59262139,3857.1,3856.5,0.02593024]
[1761927371698,3.99230139,3857.1,3857.0,0.2237]
[1761927371893,0.001,3857.2,3857.0,0.2237]
[1761927372229,0.001,3857.2,3857.1,0.2237]
[1761927372630,2.59355418,3857.2,3857.1,0.2237]
[1761927372927,0.001,3857.2,3857.1,0.2237]
[1761927373131,0.001,3857.2,3857.1,0.4474]
[1761927373735,2.59355418,3857.2,3857.1,0.2237]
[1761927374343,0.001,3857.2,3857.1,0.2237]
[1761927374499,0.001,3857.2,3857.1,0.4474]
[1761927375636,0.001,3857.2,3857.1,0.2237]
[1761927375835,0.001,3857.2,3857.1,0.4474]
[1761927376147,0.001,3857.2,3857.1,3.04002139]
[1761927376322,0.001,3857.2,3857.1,7.47209915]
[1761927377627,0.001,3857.2,3857.1,3.60329915]
[1761927378128,0.001,3857.2,3857.1,3.62922536]
[1761927378772,0.001,3857.2,3857.1,0.2237]
[1761927379133,0.001,3857.2,3857.1,0.4474]
[1761927379358,0.0002,3857.2,3857.1,0.4474]
[1761927379562,0.0002,3857.2,3857.1,0.2237]
[1761927380327,0.0002,3857.2,3857.1,0.4474]
[1761927380677,0.0002,3857.2,3857.1,0.75141806]
[1761927381201,0.0002,3857.2,3857.1,0.4474]
[1761927381374,0.0002,3857.2,3857.1,3.04002139]
[1761927382138,0.0002,3857.2,3857.1,3.0659476]
[1761927382470,0.0002,3857.2,3857.1,3.04002139]
[1761927387594,0.0002,3857.2,3857.1,3.16962139]
[1761927388163,0.0002,3857.2,3857.1,3.74585879]
[1761927388366,0.0002,3857.2,3857.1,3.642185]
[1761927388587,0.0002,3857.2,3857.1,4.047689]
[1761927389772,0.0002,3857.2,3857.1,4.02176279]
[1761927390576,0.0002,3857.2,3857.1,4.047689]
[1761927390799,0.0002,3857.2,3857.1,4.02176279]
[1761927392771,0.0002,3857.2,3857.1,10.53668956]
[1761927392986,0.001,3857.8,3857.7,2.59221816]
[1761927393162,0.001,3857.8,3857.7,3.32476216]
[1761927394101,0.001,3857.8,3857.7,3.73026616]
[1761927394502,0.001,3857.8,3857.7,3.70434398]
[1761927395801,0.001,3857.8,3857.7,3.29883998]
[1761927395998,0.001,3857.8,3857.7,3.07513998]
[1761927396412,0.001,3857.8,3857.7,3.10106216]
[1761927396709,0.001,3857.8,3857.7,3.32476216]
[1761927397289,0.001,3857.8,3857.7,3.29883998]
[1761927397612,0.001,3857.8,3857.7,3.07513998]
[1761927398478,0.001,3857.8,3857.7,3.20473998]
[1761927398681,0.001,3857.8,3857.7,0.25922182]
[1761927398912,0.9433,3857.8,3857.2,0.1296]
[1761927399087,0.001,3857.8,3857.2,0.1296]
[1761927399415,0.001,3857.8,3857.7,2.59221816]
[1761927399716,0.001,3857.8,3857.7,2.61814034]
[1761927401114,0.001,3857.8,3857.2,0.1296]
[1761927401115,0.9433,3857.8,3857.2,2.72213133]
[1761927401317,0.4721,3857.6,3857.2,0.1296]
[1761927401516,0.4721,3857.6,3857.3,0.02592486]
[1761927401517,0.1296,3857.6,3857.3,0.02592486]
[1761927401814,0.1296,3857.6,3857.5,2.59235255]
[1761927402012,0.1296,3857.6,3857.1,0.002]
[1761927402211,0.5998,3857.6,3857.3,2.59244181]
[1761927402512,0.1296,3857.6,3857.5,2.59235255]
[1761927402717,0.1296,3857.6,3857.4,0.02592419]
[1761927402879,0.4721,3857.5,3857.3,2.59246559]
[1761927403076,0.4721,3857.5,3857.2,2.5925051]
[1761927403677,0.9423,3857.5,3857.3,2.59248344]
[1761927404086,0.4721,3857.4,3857.3,2.59248344]
[1761927404316,0.4702,3857.5,3857.3,2.59248344]
[1761927404317,0.1296,3857.6,3857.5,2.59235255]
[1761927404491,0.001,3857.8,3857.7,2.59221816]
[1761927404693,0.4721,3857.6,3857.5,2.59231086]
[1761927405524,0.0002,3857.8,3857.4,2.59236464]
[1761927405704,0.0002,3857.8,3857.3,0.66126897]
[1761927405705,0.4704,3857.8,3857.3,3.25373977]
[1761927406017,0.4721,3857.4,3857.3,2.59247821]
[1761927406417,0.4721,3857.4,3857.1,0.002]
[1761927406619,0.4721,3857.4,3857.2,2.59255298]
[1761927406789,0.4721,3857.4,3857.1,0.002]
[1761927406990,0.4721,3857.2,3857.1,2.59462139]
[1761927407211,0.4721,3857.2,3857.1,0.002]
[1761927407552,0.4702,3857.4,3857.1,0.002]
[1761927407728,0.1296,3857.6,3857.3,2.59248603]
[1761927407882,0.5998,3857.6,3857.1,0.002]
[1761927408219,0.1296,3857.6,3857.2,2.59255418]
[1761927408422,0.1296,3857.6,3857.5,2.59235255]
[1761927408585,0.1296,3857.6,3857.5,2.84197607]
[1761927409718,0.1296,3857.6,3857.2,0.27500804]
[1761927409719,0.6169,3857.6,3857.2,0.27500804]
[1761927409922,0.4873,3857.4,3857.3,2.59248697]
[1761927410232,0.6249,3857.6,3857.3,2.59243789]
[1761927410392,0.6249,3857.6,3857.4,2.59236864]
[1761927410594,0.1296,3857.6,3857.4,2.59236864]
[1761927410909,0.4873,3857.5,3857.4,2.59236864]
[1761927411221,0.1296,3857.6,3857.4,2.59236864]
[1761927411451,0.1296,3857.6,3857.2,2.59254148]
[1761927411640,0.1296,3857.6,3857.5,2.59235255]
[1761927411826,0.1296,3857.6,3857.4,2.59241847]
[1761927412016,0.1296,3857.6,3857.3,2.59247636]
[1761927412518,0.1296,3857.6,3857.1,2.59461417]
[1761927412519,0.4873,3857.4,3857.1,0.002]
[1761927412862,0.4953,3857.5,3857.2,2.59254448]
[1761927413064,0.4873,3857.2,3857.1,0.002]
[1761927413558,0.9826,3857.2,3857.1,0.002]
[1761927413863,3.57515418,3857.2,3857.1,0.002]
[1761927414223,0.9826,3857.2,3857.1,0.002]
[1761927414419,3.57515418,3857.2,3857.1,0.002]
[1761927414620,0.9826,3857.2,3857.1,0.002]
[1761927414944,3.57515418,3857.2,3857.1,0.002]
[1761927415261,0.9826,3857.2,3857.1,0.002]
[1761927415758,3.57515418,3857.2,3857.1,0.002]
[1761927416263,0.9826,3857.2,3857.1,0.002]
[1761927418363,3.57515418,3857.2,3857.1,0.002]
[1761927418561,0.9826,3857.2,3857.1,0.002]
[1761927419317,3.57515418,3857.2,3857.1,0.002]
[1761927419950,0.9826,3857.2,3857.1,0.002]
[1761927420316,3.57515418,3857.2,3857.1,0.002]
[1761927420951,0.9826,3857.2,3857.1,0.002]
[1761927421252,3.57515418,3857.2,3857.1,0.002]
[1761927421453,8.90047719,3857.2,3857.1,0.002]
[1761927421661,7.11816119,3857.2,3857.1,0.002]
[1761927422224,4.19191619,3857.2,3857.1,0.002]
[1761927423318,3.57515418,3857.2,3857.1,0.002]
[1761927423721,23.38779418,3857.2,3857.1,0.002]
[1761927423959,24.78747418,3857.2,3857.1,0.002]
[1761927424165,26.34747418,3857.2,3857.1,0.002]
[1761927424738,6.94033818,3857.2,3857.1,0.002]
[1761927424935,4.97483418,3857.2,3857.1,0.002]
[1761927425245,0.9826,3857.2,3857.1,0.002]
[1761927425445,2.59221816,3857.7,3857.1,0.2257]
[1761927425622,2.59239981,3857.8,3857.1,0.3404]
[1761927425820,2.59235915,3857.8,3857.2,0.02592554]
[1761927426023,0.1296,3857.3,3857.2,0.32183361]
[1761927426258,0.1296,3857.3,3857.2,2.88846225]
[1761927426422,0.1296,3857.3,3857.2,0.29590807]
[1761927426625,0.1296,3857.3,3857.1,0.002]
[1761927426825,0.1296,3857.3,3857.2,2.81625418]
[1761927427028,0.1296,3857.3,3857.2,3.03995418]
[1761927427323,0.1296,3857.3,3857.2,0.2237]
[1761927427665,0.6169,3857.3,3857.1,0.002]
[1761927427848,0.1296,3857.3,3857.1,0.002]
[1761927428026,0.1296,3857.3,3857.2,0.2237]
[1761927428227,0.1296,3857.3,3857.2,0.50552743]
[1761927428638,1.1122,3857.3,3857.1,0.002]
[1761927428860,3.07985418,3857.2,3857.1,0.002]
[1761927429061,3.57515418,3857.2,3857.1,0.002]
[1761927429762,3.57435418,3857.2,3857.1,0.002]
[1761927430981,27.82486518,3857.2,3857.1,0.002]
[1761927431131,25.19492172,3857.2,3857.1,0.002]
[1761927431878,25.20098472,3857.2,3857.1,0.002]
[1761927432964,39.55104972,3857.2,3857.1,0.002]
[1761927436455,42.28504972,3857.2,3856.7,0.002]
[1761927436656,42.28504972,3857.2,3855.1,0.01]
[1761927436657,1.56,3855.2,3852.1,0.01]
[1761927436860,21.27305815,3854.2,3852.1,0.01]
[1761927437069,26.3349675,3854.2,3852.1,0.01]
[1761927437278,25.55978555,3854.2,3852.1,0.01]
[1761927437477,26.05508555,3854.2,3852.8,0.2285]
[1761927437678,9.47047715,3854.2,3852.8,0.2285]
[1761927437881,9.96577715,3854.2,3853.0,0.344]
[1761927438081,2.08668,3854.2,3853.1,0.03595312]
[1761927438259,2.58198,3854.2,3853.1,0.03595312]
[1761927438437,0.1926,3854.9,3854.1,0.2385]
[1761927438638,3.34593,3855.2,3854.2,0.02594572]
[1761927438940,3.34593,3855.2,3854.1,0.3514]
[1761927438941,0.1998,3855.2,3854.1,0.3514]
[1761927439279,3.28900568,3855.2,3854.1,2.94603531]
[1761927439479,0.6951,3855.2,3854.2,2.91198371]
[1761927439785,3.289016,3855.2,3854.2,0.31745353]
[1761927440144,0.1998,3855.2,3854.2,0.31745353]
[1761927440344,2.59403866,3855.0,3854.1,0.1229]
[1761927440645,0.4971,3855.1,3854.2,2.59455185]
[1761927440846,2.59409326,3855.0,3854.1,0.1229]
[1761927441047,0.4971,3855.1,3854.1,0.1229]
[1761927441392,2.59405125,3855.0,3854.1,0.1229]
[1761927441598,0.4971,3855.1,3854.1,0.41751698]
[1761927441758,0.4971,3855.1,3854.1,0.3514]
[1761927441960,0.1354,3855.3,3854.2,0.25444572]
[1761927442663,0.193,3855.7,3854.5,2.59435619]
[1761927442859,2.59374027,3855.5,3854.2,0.2285]
[1761927443062,2.59375407,3855.5,3854.2,0.2285]
[1761927443294,3.09085407,3855.5,3854.5,2.59430757]
[1761927443462,3.09085407,3855.5,3854.5,3.13603881]
[1761927443669,0.4971,3855.4,3854.5,0.54173124]
[1761927443874,2.59396864,3855.1,3854.1,0.1229]
[1761927444060,2.59407878,3855.0,3854.1,0.1229]
[1761927444259,0.4971,3855.4,3854.1,0.01]
[1761927444260,17.890883,3855.1,3854.1,0.01]
[1761927444489,0.4615,3854.2,3854.1,0.01]
[1761927444902,0.9523,3854.2,3854.1,0.01]
[1761927445056,3.54687215,3854.2,3854.1,0.01]
[1761927445396,19.06838837,3854.2,3854.1,0.01]
[1761927445565,19.06838837,3854.2,3854.1,0.012]
[1761927445765,19.47534888,3854.2,3854.1,0.012]
[1761927446173,25.62655588,3854.2,3854.1,0.012]
[1761927446787,9.99376588,3854.2,3854.1,0.012]
[1761927447195,9.23357466,3854.2,3854.1,0.012]
[1761927447354,4.86271266,3854.2,3854.1,0.012]
[1761927447560,2.26814051,3854.2,3854.1,0.012]
[1761927447897,15.30614866,3854.2,3854.1,0.012]
[1761927448295,15.52511366,3854.2,3854.1,0.012]
[1761927448498,2.75894051,3854.2,3854.1,0.012]
[1761927448796,2.26814051,3854.2,3854.1,0.012]
[1761927449210,1.80664051,3854.2,3854.1,0.012]
[1761927449401,0.40696051,3854.2,3854.1,0.012]
[1761927449598,3.09197215,3854.2,3854.1,0.012]
[1761927449798,0.9882,3854.2,3854.1,0.012]
[1761927450005,3.09197215,3854.2,3854.1,0.012]
[1761927451312,0.9882,3854.2,3854.1,0.012]
[1761927451715,3.09197215,3854.2,3854.1,0.012]
[1761927452078,2.59446012,3854.4,3854.1,0.012]
[1761927452280,0.193,3854.9,3854.1,0.012]
[1761927452516,2.59448615,3854.4,3854.1,0.012]
[1761927452702,3.09197215,3854.2,3854.1,0.012]
[1761927452899,0.4974,3854.2,3854.1,0.012]
[1761927453102,3.58277215,3854.2,3854.1,0.012]
[1761927453613,16.11183915,3854.2,3854.1,0.012]
[1761927454183,2.836688,3854.2,3854.1,0.012]
[1761927454383,5.92206015,3854.2,3854.1,0.012]
[1761927454581,20.36574878,3854.2,3854.1,0.012]
[1761927454992,20.36494878,3854.2,3854.1,0.012]
[1761927455722,18.71779378,3854.2,3854.1,0.012]
[1761927456217,9.07549578,3854.2,3854.1,0.012]
[1761927456590,8.22083263,3854.2,3854.1,0.012]
[1761927456802,7.59549578,3854.2,3854.1,0.012]
[1761927457000,2.59445287,3854.4,3854.1,0.012]
[1761927457001,1.39968,3854.3,3854.1,0.012]
[1761927457701,0.4974,3854.2,3854.1,0.012]
[1761927457899,3.09197215,3854.2,3854.1,0.012]
[1761927458400,0.4974,3854.2,3854.1,0.012]
[1761927459020,0.4908,3854.7,3854.1,0.012]
[1761927459222,1.39968,3854.5,3854.1,0.012]
[1761927459389,2.396092,3854.5,3854.1,0.012]
[1761927459720,3.09197215,3854.2,3854.1,0.012]
[1761927460303,3.58277215,3854.2,3854.1,0.012]
[1761927460524,1.39968,3854.3,3854.1,0.012]
[1761927460822,2.59454009,3854.3,3854.1,0.012]
[1761927461182,3.09197215,3854.2,3854.1,0.012]
[1761927462892,3.58277215,3854.2,3854.1,0.012]
[1761927463122,4.24118864,3854.2,3854.1,0.012]
[1761927463624,4.24218864,3854.2,3854.1,0.012]
[1761927463800,1.64761649,3854.2,3854.1,0.012]
[1761927464008,0.9892,3854.2,3854.1,0.012]
[1761927464213,3.58377215,3854.2,3854.1,0.012]
[1761927465540,4.98345215,3854.2,3854.1,0.012]
[1761927466448,2.38888,3854.2,3854.1,0.012]
[1761927466653,4.98345215,3854.2,3854.1,0.012]
[1761927468248,5.74124146,3854.2,3854.1,0.012]
[1761927469044,31.40218246,3854.2,3854.1,0.012]
[1761927469819,30.14209146,3854.2,3854.1,0.012]
[1761927470014,30.54906342,3854.2,3854.1,0.012]
[1761927470214,27.57157542,3854.2,3854.1,0.012]
[1761927470415,1.80765196,3854.2,3854.1,0.2413]
[1761927470619,4.40222411,3854.2,3854.1,0.2413]
[1761927470912,1.80765196,3854.2,3854.1,0.2413]
[1761927471750,4.40222411,3854.2,3854.1,0.012]
[1761927472630,1.80765196,3854.2,3854.1,0.012]
[1761927472956,0.001,3854.2,3854.1,0.355]
[1761927473455,0.001,3854.2,3854.1,0.5843]
[1761927473653,0.001,3854.2,3854.1,0.355]
[1761927474363,10.66852001,3854.2,3854.1,0.012]
[1761927474529,11.62201632,3854.2,3854.1,0.012]
[1761927475454,16.54796832,3854.2,3854.1,0.012]
[1761927476043,16.95494725,3854.2,3854.1,0.012]
[1761927476256,30.65759325,3854.2,3854.1,0.012]
[1761927476559,29.25620625,3854.2,3854.1,0.012]
[1761927476927,27.12261025,3854.2,3854.1,0.012]
[1761927477333,31.88358825,3854.2,3854.1,0.012]
[1761927477535,28.08568025,3854.2,3854.1,0.012]
[1761927477717,27.65738725,3854.2,3854.1,0.012]
[1761927478320,19.01419625,3854.2,3854.1,0.012]
[1761927479423,10.36165925,3854.2,3854.1,0.012]
[1761927479624,10.84755925,3854.2,3854.1,0.012]
[1761927479819,9.11575108,3854.2,3854.1,0.012]
[1761927480054,7.76524315,3854.2,3854.1,0.012]
[1761927480241,4.46435215,3854.2,3854.1,0.012]
[1761927480536,18.15737015,3854.2,3854.1,0.012]
[1761927480854,5.891465,3854.2,3854.1,0.012]
[1761927481019,1.39988,3854.2,3854.1,0.3815]
[1761927481225,3.99445215,3854.2,3854.1,0.3815]
[1761927481554,1.87078,3854.2,3854.1,0.012]
[1761927481754,1.87078,3854.2,3854.1,0.3815]
[1761927481755,1.39988,3854.2,3854.1,0.3815]